bitfinex-derivatives/quotes_BTCF0:USTF0_20250508
["timestamp","ask_amount","ask_price","bid_price","bid_amount"]
[1746747761399,0.40072,103100.0,103090.0,1.30509487]
[1746747761599,0.40072,103100.0,103090.0,1.23392836]
[1746747761794,0.3856303,103100.0,103090.0,1.37626138]
[1746747762000,0.3099257,103100.0,103090.0,1.56626138]
[1746747762308,0.231252,103100.0,103090.0,1.56626203]
[1746747762499,0.1554483,103100.0,103090.0,1.55904792]
[1746747762700,0.0981821,103100.0,103090.0,1.30509493]
[1746747762900,0.0645742,103100.0,103090.0,1.30509493]
[1746747763101,0.2325742,103100.0,103090.0,1.47509493]
[1746747763608,0.2325742,103100.0,103090.0,2.97509493]
[1746747763904,0.2325742,103100.0,103090.0,2.90405914]
[1746747764100,0.2325742,103100.0,103090.0,2.84522565]
[1746747764296,0.2325742,103100.0,103090.0,2.83788141]
[1746747765003,0.2325742,103100.0,103090.0,2.7267149]
[1746747765206,0.2325742,103100.0,103090.0,2.79788141]
[1746747765599,0.2325742,103100.0,103090.0,3.05904792]
[1746747765809,0.1983285,103100.0,103090.0,3.15604392]
[1746747766010,0.1983285,103100.0,103090.0,3.08487741]
[1746747767113,0.1983285,103100.0,103090.0,2.89487741]
[1746747767411,0.1983285,103100.0,103090.0,2.72767741]
[1746747767610,0.1983285,103100.0,103090.0,2.89507741]
[1746747768509,0.1983285,103100.0,103090.0,2.96808141]
[1746747768710,0.1983285,103100.0,103090.0,2.99808141]
[1746747768911,0.1983285,103100.0,103090.0,2.79808141]
[1746747769504,0.1983285,103100.0,103090.0,2.97808141]
[1746747769705,0.3892285,103100.0,103090.0,2.79808141]
[1746747770114,0.3892285,103100.0,103090.0,2.71416141]
[1746747770308,0.3892285,103100.0,103090.0,2.63068141]
[1746747770612,0.3892285,103100.0,103090.0,2.79804141]
[1746747772219,0.3892285,103100.0,103090.0,1.29804141]
[1746747772416,0.3892285,103100.0,103090.0,1.0595149]
[1746747772715,0.3892285,103100.0,103090.0,1.29780141]
[1746747773712,0.3892285,103100.0,103090.0,1.30485888]
[1746747775419,0.3892285,103100.0,103090.0,1.30487274]
[1746747775622,0.3892285,103100.0,103090.0,1.30487269]
[1746747775819,0.3892285,103100.0,103090.0,1.30487272]
[1746747777423,0.3892285,103100.0,103090.0,1.13775272]
[1746747777619,0.3892285,103100.0,103090.0,1.30455279]
[1746747778320,0.3892285,103100.0,103090.0,1.30445598]
[1746747778619,0.3892285,103100.0,103090.0,1.22113598]
[1746747778917,0.3892285,103100.0,103090.0,0.960296]
[1746747779323,0.3892285,103100.0,103090.0,0.96029618]
[1746747779920,0.3892285,103100.0,103090.0,0.960296]
[1746747780111,0.5832246,103100.0,103090.0,0.95406949]
[1746747780316,0.5832246,103100.0,103090.0,0.935236]
[1746747780824,0.5832246,103100.0,103090.0,0.870136]
[1746747781418,0.5832246,103100.0,103090.0,0.86316141]
[1746747781724,0.77406261,103100.0,103090.0,0.28782954]
[1746747781921,0.77406261,103100.0,103090.0,0.01097464]
[1746747782119,1.11486261,103100.0,103090.0,0.09381464]
[1746747782316,1.11486261,103100.0,103090.0,0.01097464]
[1746747782628,1.11486261,103100.0,103090.0,0.20498954]
[1746747782816,1.18602912,103100.0,103090.0,0.20498954]
[1746747783123,1.18602912,103100.0,103090.0,0.20499376]
[1746747783324,1.11486261,103100.0,103090.0,0.20499376]
[1746747783624,1.0436961,103100.0,103090.0,0.1980149]
[1746747784123,1.0436961,103100.0,103090.0,0.2636149]
[1746747784316,1.11486261,103100.0,103090.0,0.2636149]
[1746747784515,1.21352868,103100.0,103090.0,0.2636149]
[1746747784715,0.58756607,103100.0,103090.0,0.2636149]
[1746747784918,0.58756607,103100.0,103090.0,0.3296149]
[1746747785130,0.58756607,103100.0,103090.0,0.40078141]
[1746747785457,0.58756607,103100.0,103090.0,0.3296149]
[1746747785649,0.78156217,103100.0,103090.0,0.2636149]
[1746747786146,0.78156217,103100.0,103090.0,0.2596149]
[1746747786849,0.78256217,103100.0,103090.0,0.2596149]
[1746747788645,0.75793092,103100.0,103090.0,0.2596149]
[1746747789028,0.56393482,103100.0,103090.0,0.2596149]
[1746747789341,0.56393482,103100.0,103090.0,0.3248149]
[1746747789342,0.56593482,103100.0,103090.0,0.3248149]
[1746747789530,0.56593482,103100.0,103090.0,0.3908149]
[1746747790626,0.75993092,103100.0,103090.0,0.3908149]
[1746747791713,0.75993092,103100.0,103090.0,0.4733749]
[1746747792225,0.56593482,103100.0,103090.0,0.4733749]
[1746747793025,0.75993092,103100.0,103090.0,0.4733749]
[1746747794228,0.75993092,103100.0,103090.0,0.4073749]
[1746747794726,0.6858961,103100.0,103090.0,0.4073749]
[1746747795024,0.6858961,103100.0,103090.0,0.3422149]
[1746747795734,1.0466961,103100.0,103090.0,0.3422149]
[1746747798628,1.11786261,103100.0,103090.0,0.3422149]
[1746747799116,1.19189743,103100.0,103090.0,0.3422149]
[1746747799732,0.92673482,103100.0,103090.0,0.4086149]
[1746747799925,1.12073092,103100.0,103090.0,0.4086149]
[1746747800430,0.92673482,103100.0,103090.0,0.4747149]
[1746747800827,1.12073092,103100.0,103090.0,0.4747149]
[1746747801129,0.92673482,103100.0,103090.0,0.4747149]
[1746747801324,0.75993092,103100.0,103090.0,0.4747149]
[1746747801523,1.12073092,103100.0,103090.0,0.4747149]
[1746747801823,0.92673482,103100.0,103090.0,0.4747149]
[1746747802031,1.12073092,103100.0,103090.0,0.4747149]
[1746747803436,1.12073092,103100.0,103090.0,0.4745549]
[1746747803732,0.92673482,103100.0,103090.0,0.4745549]
[1746747804129,0.56593482,103100.0,103090.0,0.4745549]
[1746747804829,0.37503482,103100.0,103090.0,0.90652141]
[1746747805026,0.43633482,103100.0,103090.0,0.90652141]
[1746747805723,0.43533482,103100.0,103090.0,0.90652141]
[1746747806226,0.70049743,103100.0,103090.0,0.4745549]
[1746747806426,0.99150133,103100.0,103090.0,0.3921149]
[1746747806630,1.18349743,103100.0,103090.0,0.4754349]
[1746747806930,1.18349743,103100.0,103090.0,0.4093349]
[1746747808432,1.18549743,103100.0,103090.0,0.4093349]
[1746747808629,1.18549743,103100.0,103090.0,0.2596149]
[1746747808630,1.25666394,103100.0,103090.0,0.2596149]
[1746747808830,1.25766394,103100.0,103090.0,0.2596149]
[1746747809334,1.18649743,103100.0,103090.0,0.2596149]
[1746747810229,0.1940149,103090.0,103080.0,0.3395356]
[1746747810442,0.87948141,103090.0,103080.0,0.4056356]
[1746747811131,1.04748141,103090.0,103080.0,0.4056356]
[1746747811527,1.05620814,103090.0,103080.0,0.4056356]
[1746747812840,1.13024296,103090.0,103080.0,0.4056356]
[1746747813133,1.13324296,103090.0,103080.0,0.4056356]
[1746747814128,0.88534972,103090.0,103080.0,0.4056356]
[1746747814327,0.88534972,103090.0,103080.0,0.4707356]
[1746747814729,0.95651623,103090.0,103080.0,0.4056356]
[1746747815540,1.0551823,103090.0,103080.0,0.4056356]
[1746747815838,0.98401579,103090.0,103080.0,0.4056356]
[1746747816038,1.0551823,103090.0,103080.0,0.4056356]
[1746747816237,1.0551823,103090.0,103080.0,0.4672356]
[1746747816547,0.98401579,103090.0,103080.0,0.4672356]
[1746747816734,1.0551823,103090.0,103080.0,0.4672356]
[1746747819531,0.98401579,103090.0,103080.0,0.4672356]
[1746747819730,1.0551823,103090.0,103080.0,0.4672356]
[1746747820142,1.0551823,103090.0,103080.0,0.4187278]
[1746747820326,1.1192823,103090.0,103080.0,0.4187278]
[1746747820532,1.1192823,103090.0,103080.0,0.0661]
[1746747821140,1.2872823,103090.0,103080.0,0.0661]
[1746747821537,1.21611579,103090.0,103080.0,0.2601337]
[1746747821731,1.2872823,103090.0,103080.0,0.2601337]
[1746747822133,1.1192823,103090.0,103080.0,0.2601337]
[1746747822531,1.1192823,103090.0,103080.0,0.3267337]
[1746747822733,1.1192823,103090.0,103080.0,0.3928337]
[1746747823631,0.97408097,103090.0,103080.0,0.3928337]
[1746747824342,1.04524748,103090.0,103080.0,0.3928337]
[1746747825143,1.04766748,103090.0,103080.0,0.3928337]
[1746747835047,0.97650097,103090.0,103080.0,0.3928337]
[1746747835348,1.04766748,103090.0,103080.0,0.3928337]
[1746747835748,1.02310079,103090.0,103080.0,0.3928337]
[1746747839445,1.04766748,103090.0,103080.0,0.3928337]
[1746747844642,0.10408607,103090.0,103080.0,1.50676672]
[1746747844952,0.12333259,103100.0,103090.0,0.1940149]
[1746747845145,0.25333259,103100.0,103090.0,3.04338792]
[1746747845346,0.2389207,103110.0,103100.0,0.1939961]
[1746747845556,0.2889207,103110.0,103100.0,1.29956912]
[1746747845851,0.2889207,103110.0,103100.0,1.50422409]
[1746747846152,0.2889207,103110.0,103100.0,3.2433906]
[1746747846452,0.2889207,103110.0,103100.0,3.31455711]
[1746747846951,0.2889207,103110.0,103100.0,3.2433906]
[1746747847155,0.2889207,103110.0,103100.0,2.9933906]
[1746747847748,0.2889207,103110.0,103100.0,2.92075736]
[1746747847961,0.2889207,103110.0,103100.0,2.81864937]
[1746747848248,0.2889207,103110.0,103100.0,2.67274937]
[1746747848445,0.2889207,103110.0,103100.0,2.97934937]
[1746747848950,0.05,103110.0,103100.0,2.97934937]
[1746747849253,0.05,103110.0,103100.0,2.95934937]
[1746747849451,0.05,103110.0,103100.0,3.03051588]
[1746747849754,0.05,103110.0,103100.0,2.87051588]
[1746747849941,0.05,103110.0,103100.0,3.07051588]
[1746747850152,0.05,103110.0,103100.0,2.87051588]
[1746747850443,0.05,103110.0,103100.0,3.05051588]
[1746747850644,0.05,103110.0,103100.0,2.87051588]
[1746747850840,0.05,103110.0,103100.0,2.79934937]
[1746747851551,0.05,103110.0,103100.0,2.97934937]
[1746747851757,0.05,103110.0,103100.0,3.05051588]
[1746747853660,0.05,103110.0,103100.0,2.87051588]
[1746747853843,0.05,103110.0,103100.0,3.04051588]
[1746747855057,0.05,103110.0,103100.0,1.63750387]
[1746747855461,0.05,103110.0,103100.0,3.13750387]
[1746747855955,0.05,103110.0,103100.0,3.20867038]
[1746747856155,0.2303,103130.0,103120.0,0.1939584]
[1746747856462,0.1003,103130.0,103120.0,1.05189142]
[1746747856667,0.1003,103130.0,103120.0,1.23489142]
[1746747856958,0.1003,103130.0,103120.0,1.59569142]
[1746747857157,0.1003,103130.0,103120.0,1.76369142]
[1746747857356,0.1003,103130.0,103120.0,1.86065942]
[1746747857559,0.1003,103130.0,103120.0,1.86365942]
[1746747857859,0.07396692,103140.0,103130.0,0.1939396]
[1746747858058,0.13396692,103140.0,103130.0,1.12797262]
[1746747858758,0.06,103140.0,103130.0,1.12797262]
[1746747859059,0.06,103140.0,103130.0,1.30323796]
[1746747859259,0.06,103140.0,103130.0,1.23207145]
[1746747859455,0.06,103140.0,103130.0,1.31443145]
[1746747859850,0.06,103140.0,103130.0,1.35157663]
[1746747860557,0.06,103140.0,103130.0,1.17157663]
[1746747860760,0.1253,103140.0,103130.0,1.17157663]
[1746747860962,0.1253,103140.0,103130.0,2.84157663]
[1746747861258,0.1887,103140.0,103130.0,2.84157663]
[1746747862267,0.1887,103140.0,103130.0,2.67157663]
[1746747862757,0.24063259,103140.0,103130.0,2.51566494]
[1746747863460,0.11193259,103140.0,103130.0,2.51566494]
[1746747863665,0.06,103140.0,103130.0,2.62397663]
[1746747864865,0.1257,103140.0,103130.0,2.62397663]
[1746747865266,0.1912,103140.0,103130.0,2.62397663]
[1746747865565,0.24313259,103140.0,103130.0,2.62397663]
[1746747866451,0.3851208,103140.0,103130.0,2.29010494]
[1746747866668,0.50705339,103140.0,103130.0,2.37242494]
[1746747866858,0.31313259,103140.0,103130.0,2.45474494]
[1746747867161,0.31313259,103140.0,103130.0,2.28674494]
[1746747867468,0.50705339,103140.0,103130.0,0.78674494]
[1746747867764,0.50705339,103140.0,103130.0,0.80674494]
[1746747867967,0.50705339,103140.0,103130.0,0.66432494]
[1746747868160,0.50705339,103140.0,103130.0,0.74664494]
[1746747868867,0.31313259,103140.0,103130.0,0.74664494]
[1746747869172,0.31313259,103140.0,103130.0,0.91645663]
[1746747869173,0.30313259,103140.0,103130.0,0.91645663]
[1746747870364,0.30313259,103140.0,103130.0,0.80814494]
[1746747870559,0.30313259,103140.0,103130.0,1.16814494]
[1746747871769,0.31313259,103140.0,103130.0,1.11814494]
[1746747872172,0.18313259,103140.0,103130.0,0.78814494]
[1746747872364,0.32313259,103140.0,103130.0,1.18814494]
[1746747872758,0.32313259,103140.0,103130.0,1.16814494]
[1746747873569,0.32313259,103140.0,103130.0,0.78814494]
[1746747875766,0.32313259,103140.0,103130.0,0.70582494]
[1746747875971,0.51705339,103140.0,103130.0,0.20120494]
[1746747876165,0.51705339,103140.0,103130.0,0.28352494]
[1746747876565,0.32313259,103140.0,103130.0,0.75263663]
[1746747876871,0.32313259,103140.0,103130.0,0.81453663]
[1746747877371,0.32313259,103140.0,103130.0,0.70622494]
[1746747877572,0.32313259,103140.0,103130.0,0.81453663]
[1746747879072,0.32313259,103140.0,103130.0,0.98253663]
[1746747879875,0.32313259,103140.0,103130.0,0.87418494]
[1746747880974,0.32313259,103140.0,103130.0,0.93708494]
[1746747887370,0.32313259,103140.0,103130.0,0.97708494]
[1746747887570,0.2712,103140.0,103130.0,1.08539663]
[1746747887876,0.32313259,103140.0,103130.0,1.34169663]
[1746747888063,0.32313259,103140.0,103130.0,1.15169663]
[1746747890776,0.51705339,103140.0,103130.0,1.06941663]
[1746747891077,0.51705339,103140.0,103130.0,0.93704494]
[1746747892177,0.51705339,103140.0,103130.0,0.76904494]
[1746747892670,0.51705339,103140.0,103130.0,0.70614494]
[1746747893075,0.51705339,103140.0,103130.0,0.26310494]
[1746747893381,0.51705339,103140.0,103130.0,0.28344494]
[1746747895276,0.51705339,103140.0,103130.0,0.34874494]
[1746747896181,0.87785339,103140.0,103130.0,0.20120494]
[1746747896381,1.06021461,103140.0,103130.0,0.28340494]
[1746747897383,1.06121461,103140.0,103130.0,0.28340494]
[1746747897875,1.06221461,103140.0,103130.0,0.28340494]
[1746747898884,0.98816508,103140.0,103130.0,0.28340494]
[1746747901783,0.98816508,103140.0,103130.0,0.20120494]
[1746747901978,1.07647677,103140.0,103130.0,0.00726534]
[1746747902173,1.09903767,103140.0,103110.0,0.3060538]
[1746747902475,0.71500268,103120.0,103110.0,0.3246538]
[1746747902677,0.73669099,103120.0,103110.0,0.3246538]
[1746747902978,0.86509099,103120.0,103110.0,0.3246538]
[1746747903180,0.86509099,103120.0,103110.0,0.3882538]
[1746747903484,0.82182497,103120.0,103110.0,0.3882538]
[1746747903689,0.86509099,103120.0,103110.0,0.3882538]
[1746747904383,0.50429099,103120.0,103110.0,0.3882538]
[1746747904686,0.50429099,103120.0,103110.0,0.39755595]
[1746747904886,0.57832869,103120.0,103110.0,0.39955595]
[1746747905188,0.38437029,103120.0,103110.0,0.39955595]
[1746747905378,0.57832869,103120.0,103110.0,0.46255595]
[1746747905987,0.57932869,103120.0,103110.0,0.46055595]
[1746747906477,0.57932869,103120.0,103110.0,0.45855595]
[1746747906678,0.58032869,103120.0,103110.0,0.45855595]
[1746747908482,0.38637029,103120.0,103110.0,0.56686764]
[1746747908686,0.38637029,103120.0,103110.0,0.63326764]
[1746747908897,0.38637029,103120.0,103110.0,0.52495595]
[1746747909081,0.38637029,103120.0,103110.0,0.69295595]
[1746747909690,0.38437029,103120.0,103110.0,0.69395595]
[1746747909879,0.57832869,103120.0,103110.0,0.76395595]
[1746747910083,0.57832869,103120.0,103110.0,0.00830215]
[1746747910279,0.91744038,103120.0,103110.0,0.00830215]
[1746747910479,0.96340268,103120.0,103110.0,0.00830215]
[1746747910889,0.96340268,103120.0,103110.0,0.20227945]
[1746747911186,0.85609099,103120.0,103110.0,0.20127945]
[1746747911395,0.85709099,103120.0,103110.0,0.26807945]
[1746747911783,0.85609099,103120.0,103110.0,0.26807945]
[1746747911983,0.85809099,103120.0,103110.0,0.26807945]
[1746747912392,0.85609099,103120.0,103110.0,0.26807945]
[1746747912594,0.86009099,103120.0,103110.0,0.26807945]
[1746747913590,1.0327752,103120.0,103110.0,0.26807945]
[1746747914796,1.0351952,103120.0,103110.0,0.26807945]
[1746747914998,0.6743952,103120.0,103110.0,0.26807945]
[1746747915512,0.6743952,103120.0,103110.0,0.33437945]
[1746747916491,0.57574869,103120.0,103110.0,0.33437945]
[1746747922104,0.38179029,103120.0,103110.0,0.33437945]
[1746747922305,0.2629577,103120.0,103110.0,0.88561114]
[1746747922600,0.2014577,103120.0,103110.0,0.88561114]
[1746747923195,0.2014577,103120.0,103110.0,1.05361114]
[1746747925505,0.1964577,103120.0,103110.0,1.05461114]
[1746747925804,0.29510421,103120.0,103110.0,1.05461114]
[1746747926504,0.48906261,103120.0,103110.0,1.05461114]
[1746747926705,0.42270421,103120.0,103110.0,0.94629945]
[1746747926907,0.61666261,103120.0,103110.0,0.94629945]
[1746747927405,0.42270421,103120.0,103110.0,0.94629945]
[1746747928803,0.25002,103120.0,103110.0,0.94629945]
[1746747929399,0.18612,103120.0,103110.0,0.94629945]
[1746747929705,0.12242,103120.0,103110.0,0.94629945]
[1746747929896,0.18912,103120.0,103110.0,0.94629945]
[1746747930300,0.25372,103120.0,103110.0,0.94629945]
[1746747932512,0.4476784,103120.0,103110.0,0.94629945]
[1746747933012,0.25372,103120.0,103110.0,0.94629945]
[1746747933202,0.4476784,103120.0,103110.0,0.94629945]
[1746747933611,0.25372,103120.0,103110.0,0.94629945]
[1746747933912,0.25372,103120.0,103110.0,0.94621945]
[1746747936312,0.30565259,103120.0,103110.0,0.94621945]
[1746747936810,0.30565259,103120.0,103110.0,1.05453114]
[1746747937717,0.30565259,103120.0,103110.0,0.94621945]
[1746747937916,0.49961099,103120.0,103110.0,0.94621945]
[1746747938212,0.30565259,103120.0,103110.0,1.05453114]
[1746747939101,0.18912,103120.0,103110.0,0.69373114]
[1746747939307,0.12242,103120.0,103110.0,1.38284283]
[1746747939604,0.12242,103120.0,103110.0,1.29453114]
[1746747939805,0.12242,103120.0,103110.0,1.27453114]
[1746747940013,0.12242,103120.0,103110.0,1.38284283]
[1746747940312,0.12242,103120.0,103110.0,1.27453114]
[1746747940513,0.12242,103120.0,103110.0,2.77453114]
[1746747941115,0.12242,103120.0,103110.0,2.88284283]
[1746747942313,0.12242,103120.0,103110.0,2.77453114]
[1746747947114,0.18612,103120.0,103110.0,2.69249114]
[1746747947414,0.24882,103120.0,103110.0,2.77445114]
[1746747949510,0.12242,103120.0,103110.0,2.77445114]
[1746747950821,0.12242,103120.0,103110.0,2.88276283]
[1746747951022,0.12242,103120.0,103110.0,3.14456283]
[1746747951219,0.12242,103120.0,103110.0,3.24154283]
[1746747951421,0.0948782,103120.0,103110.0,3.24154283]
[1746747951923,0.0948782,103120.0,103110.0,3.13323114]
[1746747952420,0.0948782,103120.0,103110.0,3.24154283]
[1746747952923,0.0948782,103120.0,103110.0,3.24254283]
[1746747953119,0.0948782,103120.0,103110.0,3.24954283]
[1746747953710,0.0948782,103120.0,103110.0,3.14123114]
[1746747954815,0.0948782,103120.0,103110.0,3.14119114]
[1746747955014,0.2847782,103120.0,103110.0,3.14119114]
[1746747955925,0.1581782,103120.0,103110.0,3.14119114]
[1746747956922,0.0948782,103120.0,103110.0,3.14119114]
[1746747958015,0.0948782,103120.0,103110.0,3.24950283]
[1746747959120,0.12242,103120.0,103110.0,3.39950283]
[1746747959321,0.0932408,103120.0,103110.0,3.49950283]
[1746747959621,0.0681449,103120.0,103110.0,3.49950283]
[1746747959819,0.0413934,103120.0,103110.0,3.49950283]
[1746747960013,1e-07,103120.0,103110.0,3.49950283]
[1746747961424,1e-07,103120.0,103110.0,1.99950283]
[1746747961826,1e-07,103120.0,103110.0,3.49950283]
[1746747962819,1e-07,103120.0,103110.0,3.39950283]
[1746747963218,1e-07,103120.0,103110.0,3.49950283]
[1746747963419,1e-07,103120.0,103110.0,3.64790608]
[1746747965013,1e-07,103120.0,103110.0,4.06380608]
[1746747965218,0.12832,103130.0,103120.0,0.1939584]
[1746747965422,0.12832,103130.0,103120.0,1.33171009]
[1746747965423,0.21672,103130.0,103120.0,1.33171009]
[1746747965620,0.26865259,103130.0,103120.0,1.33171009]
[1746747965919,0.26865259,103130.0,103120.0,1.10987009]
[1746747966119,0.26865259,103130.0,103120.0,1.58155009]
[1746747966626,0.26865259,103130.0,103120.0,1.49971009]
[1746747966827,0.26865259,103130.0,103120.0,1.58655009]
[1746747967827,0.26865259,103130.0,103120.0,1.64705009]
[1746747971828,0.26865259,103130.0,103120.0,1.58655009]
[1746747972222,0.26865259,103130.0,103120.0,1.3963984]
[1746747972421,0.26865259,103130.0,103120.0,1.24651009]
[1746747972726,0.26865259,103130.0,103120.0,1.06651009]
[1746747973426,0.26865259,103130.0,103120.0,0.89851009]
[1746747976528,0.26623259,103130.0,103120.0,0.89851009]
[1746747976721,0.26623259,103130.0,103120.0,1.06851009]
[1746747976927,0.26623259,103130.0,103120.0,0.89851009]
[1746747977427,0.26623259,103130.0,103120.0,1.07851009]
[1746747977733,0.26623259,103130.0,103120.0,0.89851009]
[1746747979128,0.26623259,103130.0,103120.0,1.13851009]
[1746747979335,0.26623259,103130.0,103120.0,1.58151009]
[1746747980125,0.32853259,103130.0,103120.0,1.74951009]
[1746747980433,0.32853259,103130.0,103120.0,1.74751009]
[1746747981129,0.32853259,103130.0,103120.0,1.75151009]
[1746747981526,0.39263259,103130.0,103120.0,1.75151009]
[1746747983139,0.39263259,103130.0,103120.0,1.6431984]
[1746747983438,0.39263259,103130.0,103120.0,1.75151009]
[1746747984540,0.39263259,103130.0,103120.0,1.89991334]
[1746747985437,0.39263259,103130.0,103120.0,1.83881334]
[1746747986141,0.39263259,103130.0,103120.0,1.77683334]
[1746747987140,0.3407,103130.0,103120.0,1.69053009]
[1746747987344,0.39263259,103130.0,103120.0,1.75273009]
[1746747991146,0.39263259,103130.0,103120.0,1.46487009]
[1746747991453,0.39263259,103130.0,103120.0,1.62827009]
[1746747991857,0.39263259,103130.0,103120.0,1.59105816]
[1746747992246,0.39263259,103130.0,103120.0,1.42305816]
[1746747992849,0.39263259,103130.0,103120.0,1.3519584]
[1746747993055,0.39263259,103130.0,103120.0,1.42305816]
[1746747993256,0.39263259,103130.0,103120.0,1.23305816]
[1746747993663,0.39263259,103130.0,103120.0,1.43305816]
[1746747993858,0.39263259,103130.0,103120.0,1.47029834]
[1746747994847,0.38263259,103130.0,103120.0,0.7102384]
[1746747995061,0.36263259,103130.0,103120.0,0.6434384]
[1746747995253,0.36263259,103130.0,103120.0,0.7251584]
[1746747995452,0.36263259,103130.0,103120.0,0.6434784]
[1746747996160,0.36263259,103130.0,103120.0,0.75181834]
[1746747996363,0.36505259,103130.0,103120.0,1.10531834]
[1746747996569,0.36505259,103130.0,103120.0,0.9969784]
[1746747996755,0.36505259,103130.0,103120.0,1.17271834]
[1746747997057,0.36505259,103130.0,103120.0,1.34071834]
[1746747998158,0.36505259,103130.0,103120.0,1.51071834]
[1746747998564,0.36505259,103130.0,103120.0,1.57631834]
[1746747998762,0.36505259,103130.0,103120.0,1.51071834]
[1746748000957,0.31312,103130.0,103120.0,1.51071834]
[1746748001563,0.29217294,103150.0,103120.0,1.82544794]
[1746748001758,0.32006215,103160.0,103150.0,0.193902]
[1746748002062,0.44006215,103160.0,103150.0,1.20648194]
[1746748002261,0.49199474,103160.0,103150.0,1.51228194]
[1746748002458,0.49199474,103160.0,103150.0,1.26763369]
[1746748003166,0.49199474,103160.0,103150.0,1.27363369]
[1746748003868,0.49199474,103160.0,103150.0,1.27463369]
[1746748004260,0.49199474,103160.0,103150.0,1.10663369]
[1746748004563,0.49199474,103160.0,103150.0,1.16833369]
[1746748005268,0.36883259,103160.0,103150.0,1.16833369]
[1746748005661,0.36883259,103160.0,103150.0,0.99829375]
[1746748005961,0.36883259,103160.0,103150.0,1.10663369]
[1746748009464,0.36883259,103160.0,103150.0,1.16943369]
[1746748010160,0.36883259,103160.0,103150.0,1.33743369]
[1746748010672,0.36883259,103160.0,103150.0,1.16629375]
[1746748011175,0.36883259,103160.0,103150.0,0.99829375]
[1746748012069,0.36883259,103160.0,103150.0,1.06249375]
[1746748013878,0.36883259,103160.0,103150.0,1.17083369]
[1746748017072,0.36883259,103160.0,103150.0,1.00739369]
[1746748017273,0.36883259,103160.0,103150.0,1.17075369]
[1746748017473,0.36883259,103160.0,103150.0,1.06241375]
[1746748018782,0.36883259,103160.0,103150.0,2.67075369]
[1746748018979,0.36883259,103160.0,103150.0,2.73635369]
[1746748019179,0.36883259,103160.0,103150.0,1.23635369]
[1746748020676,0.36883259,103160.0,103150.0,0.91653375]
[1746748020971,0.36883259,103160.0,103150.0,0.99821375]
[1746748021177,0.36883259,103160.0,103150.0,1.06091375]
[1746748021775,0.36883259,103160.0,103150.0,0.99821375]
[1746748021978,0.36883259,103160.0,103150.0,0.83485375]
[1746748022177,0.36883259,103160.0,103150.0,0.99817375]
[1746748022969,0.36883259,103160.0,103150.0,1.10651369]
[1746748023181,0.36883259,103160.0,103150.0,1.40801369]
[1746748024177,0.36883259,103160.0,103150.0,1.24001369]
[1746748026478,0.36883259,103160.0,103150.0,1.13167375]
[1746748028989,0.36883259,103160.0,103150.0,1.24001369]
[1746748029189,0.36883259,103160.0,103150.0,1.40801369]
[1746748030091,0.36883259,103160.0,103150.0,1.13167375]
[1746748032588,0.36883259,103160.0,103150.0,1.06437375]
[1746748032790,0.67105573,103160.0,103150.0,0.77075375]
[1746748032993,0.36883259,103160.0,103150.0,0.73403375]
[1746748033296,0.36883259,103160.0,103150.0,0.80123375]
[1746748034793,0.56271579,103160.0,103150.0,0.80123375]
[1746748034988,0.36883259,103160.0,103150.0,0.44043375]
[1746748035488,0.56271579,103160.0,103150.0,0.37323375]
[1746748035694,0.36883259,103160.0,103150.0,0.37323375]
[1746748036302,0.36883259,103160.0,103150.0,0.80193375]
[1746748036798,0.36883259,103160.0,103150.0,0.87013375]
[1746748037485,0.36883259,103160.0,103150.0,0.93443375]
[1746748038297,0.3169,103160.0,103150.0,1.04277369]
[1746748038491,0.3169,103160.0,103150.0,1.37277369]
[1746748038492,0.37883259,103160.0,103150.0,1.37277369]
[1746748039191,0.37883259,103160.0,103150.0,1.54077369]
[1746748039401,0.00272,103170.0,103160.0,0.1938832]
[1746748039600,0.25735259,103170.0,103160.0,0.79252314]
[1746748039902,0.32005259,103170.0,103160.0,0.79252314]
[1746748040102,0.32005259,103170.0,103160.0,0.96052314]
[1746748041404,0.32005259,103170.0,103160.0,0.96552314]
[1746748042209,0.32005259,103170.0,103160.0,0.8571832]
[1746748042507,0.32005259,103170.0,103160.0,0.96552314]
[1746748043302,0.2657,103170.0,103160.0,0.79752314]
[1746748043502,0.31763259,103170.0,103160.0,0.79752314]
[1746748043806,0.31763259,103170.0,103160.0,0.6891832]
[1746748045600,0.31763259,103170.0,103160.0,0.6214832]
[1746748047206,0.32005259,103170.0,103160.0,0.6214832]
[1746748048011,0.32005259,103170.0,103160.0,0.72982314]
[1746748048206,0.32005259,103170.0,103160.0,0.79402314]
[1746748048509,0.25735259,103170.0,103160.0,1.35402314]
[1746748049106,0.25735259,103170.0,103160.0,1.34202314]
[1746748049603,0.32545259,103170.0,103160.0,1.52202314]
[1746748049812,0.32545259,103170.0,103160.0,1.51202314]
[1746748050307,0.32545259,103170.0,103160.0,1.34202314]
[1746748051309,0.32545259,103170.0,103160.0,1.50522314]
[1746748052307,0.32545259,103170.0,103160.0,1.67522314]
[1746748052603,0.19465259,103170.0,103160.0,1.67522314]
[1746748052808,0.1164549,103170.0,103160.0,1.60362314]
[1746748053011,0.001,103180.0,103170.0,0.1938644]
[1746748053215,0.141,103180.0,103170.0,1.52954428]
[1746748053407,0.141,103180.0,103170.0,1.42120434]
[1746748053603,0.141,103180.0,103170.0,1.1128644]
[1746748053908,0.141,103180.0,103170.0,1.22120434]
[1746748054113,0.27,103180.0,103170.0,1.39020434]
[1746748054504,0.27,103180.0,103170.0,1.39620434]
[1746748054903,0.27,103180.0,103170.0,1.66780434]
[1746748055100,0.27,103180.0,103170.0,1.58620434]
[1746748055310,0.27,103180.0,103170.0,1.66780434]
[1746748055716,0.27,103180.0,103170.0,1.4185591]
[1746748056613,0.6308,103180.0,103170.0,0.9761591]
[1746748056812,0.87657829,103180.0,103170.0,0.26375476]
[1746748057016,0.99491823,103180.0,103170.0,0.18215476]
[1746748057213,1.16291823,103180.0,103170.0,0.01415476]
[1746748058016,1.16291823,103180.0,103170.0,0.20801916]
[1746748058215,0.99491823,103180.0,103170.0,0.20801916]
[1746748058806,1.09184223,103180.0,103170.0,0.20801916]
[1746748059209,1.25984223,103180.0,103170.0,0.20801916]
[1746748060215,1.09184223,103180.0,103170.0,0.20801916]
[1746748060621,1.09184223,103180.0,103170.0,0.20701916]
[1746748060812,0.98350229,103180.0,103170.0,0.20701916]
[1746748061117,1.25984223,103180.0,103170.0,0.20401916]
[1746748062221,1.09184223,103180.0,103170.0,0.20401916]
[1746748064814,0.63965659,103180.0,103170.0,0.20401916]
[1746748065010,0.76965659,103180.0,103170.0,0.20401916]
[1746748065721,0.76965659,103180.0,103170.0,0.26711916]
[1746748065924,0.96350229,103180.0,103170.0,0.26711916]
[1746748066114,0.76965659,103180.0,103170.0,0.26711916]
[1746748066514,0.86657829,103180.0,103170.0,0.26711916]
[1746748067023,0.67273259,103180.0,103170.0,0.26711916]
[1746748067424,0.86657829,103180.0,103170.0,0.26711916]
[1746748067627,0.67273259,103180.0,103170.0,0.26711916]
[1746748067822,0.33193259,103180.0,103170.0,0.7994591]